bitfinex/quotes_SOLUSD_20251218
["timestamp","ask_amount","ask_price","bid_price","bid_amount"]
[1766033491456,0.7,123.86,123.83,0.72]
[1766033494380,0.7,123.85,123.83,0.72]
[1766033494772,8.773849,123.86,123.83,0.72]
[1766033503698,8.773849,123.86,123.82,8.86]
[1766033503699,0.71,123.85,123.82,8.86]
[1766033504290,0.71,123.84,123.81,9.56]
[1766033504496,0.71,123.84,123.82,0.7]
[1766033505083,8.78494632,123.84,123.81,9.56]
[1766033505384,8.78494632,123.84,123.82,0.7]
[1766033505594,8.78494632,123.84,123.81,9.56]
[1766033506474,8.78494632,123.84,123.81,8.86]
[1766033506689,8.78494632,123.84,123.82,0.7]
[1766033506889,0.71,123.84,123.82,0.7]
[1766033509272,8.78503656,123.84,123.82,0.7]
[1766033509473,8.78503656,123.84,123.81,9.56]
[1766033515185,8.78503656,123.84,123.81,11.96770676]
[1766033521578,8.78503656,123.84,123.81,11.26770676]
[1766033521778,8.78503656,123.84,123.81,11.96770676]
[1766033522625,8.78503656,123.84,123.81,9.56]
[1766033525501,8.78503656,123.84,123.81,11.96770676]
[1766033529003,8.78503656,123.84,123.81,11.26770676]
[1766033529205,8.78503656,123.84,123.82,0.7]
[1766033531308,0.72,123.83,123.81,8.86]
[1766033532087,0.72,123.83,123.81,9.54]
[1766033533896,0.72,123.83,123.81,11.94770676]
[1766033534611,0.72,123.83,123.81,3.08770676]
[1766033534792,0.72,123.83,123.81,3.08841576]
[1766033535208,8.0742834,123.85,123.81,3.08841576]
[1766033535420,8.7442834,123.85,123.82,2.40841576]
[1766033535601,8.74389388,123.86,123.83,0.68]
[1766033537188,8.74389388,123.86,123.84,0.68]
[1766033538109,0.67,123.85,123.83,4.44210507]
[1766033538417,8.74389388,123.86,123.84,0.68]
[1766033551122,0.67,123.85,123.83,0.68]
[1766033551630,0.67,123.85,123.82,0.68]
[1766033552211,8.74320702,123.87,123.84,4.44210507]
[1766033552410,8.74320702,123.87,123.85,0.68]
[1766033552613,8.07320702,123.87,123.85,0.68]
[1766033552925,8.74197104,123.89,123.87,0.68]
[1766033553224,0.67,123.87,123.82,0.68]
[1766033553426,0.67,123.84,123.82,0.68]
[1766033554522,0.67,123.83,123.81,0.68]
[1766033554823,0.67,123.84,123.81,0.68]
[1766033555030,8.74523025,123.84,123.81,0.68]
[1766033556929,0.67,123.83,123.81,0.68]
[1766033557115,0.67,123.83,123.8,8.80994492]
[1766033557320,0.67,123.83,123.8,9.48994492]
[1766033557517,0.67,123.83,123.8,0.68]
[1766033558235,3.76210507,123.83,123.8,0.68]
[1766033558434,0.67,123.82,123.8,0.68]
[1766033559131,8.07603124,123.83,123.8,0.68]
[1766033559335,8.74603124,123.83,123.8,0.68]
[1766033563237,23.94559247,123.87,123.83,0.72]
[1766033563547,0.72,123.86,123.84,0.72]
[1766033564121,20.9034874,123.87,123.84,0.72]
[1766033564347,8.07390472,123.86,123.84,0.72]
[1766033564946,8.79390472,123.86,123.84,0.72]
[1766033565727,8.07297973,123.87,123.84,0.72]
[1766033565922,8.79297973,123.87,123.84,0.72]
[1766033569954,0.72,123.86,123.84,0.72]
[1766033570447,0.72,123.86,123.82,28.03100447]
[1766033570628,0.72,123.86,123.83,0.72]
[1766033572047,8.79423054,123.86,123.83,0.72]
[1766033573246,0.72,123.85,123.83,0.72]
[1766033573653,12.55633561,123.86,123.83,0.72]
[1766033576260,8.79423054,123.86,123.83,0.72]
[1766033577041,0.72,123.85,123.83,0.72]
[1766033577236,8.07423054,123.86,123.83,0.72]
[1766033577436,8.79423054,123.86,123.83,0.72]
[1766033578347,0.72,123.85,123.83,0.72]
[1766033578558,8.79435233,123.85,123.83,0.72]
[1766033581756,8.07435233,123.85,123.83,0.72]
[1766033582074,8.79392381,123.86,123.83,0.72]
[1766033585143,0.72,123.85,123.83,0.72]
[1766033585746,8.79392381,123.86,123.83,0.72]
[1766033591175,8.0733141,123.87,123.85,3.76210507]
[1766033591475,8.0733141,123.87,123.86,0.67]
[1766033596083,8.0733141,123.87,123.85,3.76210507]
[1766033596383,8.0733141,123.87,123.85,0.7]
[1766033610395,8.7733141,123.87,123.85,0.7]
[1766033612398,8.77232805,123.88,123.85,0.7]
[1766033613699,8.77340674,123.87,123.85,0.7]
[1766033615204,8.77232805,123.88,123.85,0.7]
[1766033616204,8.77347956,123.87,123.85,0.7]
[1766033618879,8.07347956,123.87,123.85,0.7]
[1766033619083,8.77232805,123.88,123.85,0.7]
[1766033621992,28.95314819,123.88,123.85,0.7]
[1766033623214,28.91314819,123.88,123.85,0.7]
[1766033638121,8.73232805,123.88,123.85,0.7]
[1766033638515,8.73232805,123.88,123.85,2.40711477]
[1766033638815,8.73232805,123.88,123.86,0.7]
[1766033640016,25.12505227,123.92,123.87,11.21705969]
[1766033640319,0.66,123.92,123.88,0.7]
[1766033640617,0.66,123.91,123.88,0.7]
[1766033641194,0.66,123.9,123.86,2.40711477]
[1766033641417,0.66,123.89,123.85,11.91705969]
[1766033641920,0.66,123.89,123.85,9.50994492]
[1766033642223,8.73232805,123.88,123.85,11.91705969]
[1766033642520,8.73232805,123.88,123.86,0.7]
[1766033643824,8.07232805,123.88,123.86,0.7]
[1766033644018,8.73232805,123.88,123.86,0.7]
[1766033646318,8.73232805,123.88,123.85,8.80994492]
[1766033646522,8.73300941,123.87,123.85,9.50994492]
[1766033647823,8.73300941,123.87,123.85,0.7]
[1766033648313,8.07300941,123.87,123.85,0.7]
[1766033651930,8.07300941,123.87,123.86,0.66]
[1766033652529,0.72,123.89,123.86,3.06711477]
[1766033653229,0.72,123.89,123.86,0.66]
[1766033653531,0.72,123.89,123.86,3.06711477]
[1766033654327,0.72,123.89,123.86,0.66]
[1766033654531,0.72,123.88,123.86,0.66]
[1766033659434,20.41548811,123.9,123.86,0.66]
[1766033661039,26.07939836,123.9,123.86,0.66]
[1766033661523,0.72,123.89,123.86,0.66]
[1766033663334,0.72,123.88,123.86,0.66]
[1766033665515,0.72,123.88,123.86,4.42018835]
[1766033669445,0.72,123.88,123.86,0.66]
[1766033673538,0.72,123.89,123.86,4.42031998]
[1766033677260,8.07178978,123.89,123.86,4.42031998]
[1766033677422,0.72,123.88,123.86,0.66]
[1766033681123,0.72,123.89,123.86,0.66]
[1766033683259,0.69,123.88,123.86,0.66]
[1766033689632,0.69,123.87,123.85,0.72]
[1766033690237,8.76263093,123.88,123.85,0.72]
[1766033690434,8.76263093,123.88,123.85,3.76031998]
[1766033690655,8.76263093,123.88,123.86,0.72]
[1766033695152,8.07182426,123.89,123.86,3.76031998]
[1766033695361,0.69,123.88,123.86,4.48031998]
[1766033696371,0.69,123.88,123.86,0.72]
[1766033702457,8.76233896,123.88,123.86,0.72]
[1766033703664,0.69,123.88,123.86,0.72]
[1766033704761,8.07198916,123.89,123.86,0.72]
[1766033704940,0.69,123.88,123.86,0.72]
[1766033707848,8.7624919,123.88,123.86,0.72]
[1766033710967,0.69,123.88,123.86,0.72]
[1766033711573,8.07104227,123.9,123.86,3.76031998]
[1766033711802,8.77041007,123.91,123.88,4.43031998]
[1766033712076,0.7,123.9,123.88,4.43031998]
[1766033713156,8.77041007,123.91,123.89,3.76031998]
[1766033713362,8.76993847,123.92,123.9,0.66]
[1766033713566,8.76993847,123.92,123.89,4.42031998]
[1766033713753,0.7,123.91,123.89,0.66]
[1766033715481,8.76993847,123.92,123.9,0.66]
[1766033716563,0.7,123.92,123.89,4.42031998]
[1766033717873,8.77009085,123.92,123.89,4.42031998]
[1766033718084,0.7,123.91,123.89,4.42031998]
[1766033719483,0.7,123.91,123.89,0.66]
[1766033720378,0.7,123.91,123.89,4.42031998]
[1766033721686,0.7,123.9,123.88,8.86]
[1766033722065,0.7,123.9,123.88,9.52]
[1766033725486,0.7,123.9,123.88,8.86]
[1766033726064,0.7,123.9,123.88,9.52]
[1766033729993,8.77106135,123.9,123.88,9.52]
[1766033730167,0.7,123.89,123.87,0.66]
[1766033730492,0.7,123.89,123.87,9.52]
[1766033730677,8.77106135,123.9,123.87,11.92603137]
[1766033731275,8.77106135,123.9,123.87,11.26603137]
[1766033731486,8.77106135,123.9,123.88,0.66]
[1766033735896,8.77106135,123.9,123.87,11.9259257]
[1766033737000,8.77106135,123.9,123.88,0.66]
[1766033745010,28.24676466,123.91,123.88,2.4059257]
[1766033745212,29.0335113,123.93,123.9,2.4059257]
[1766033745510,0.67,123.92,123.89,3.0959257]
[1766033745812,0.67,123.92,123.89,0.69]
[1766033746381,0.67,123.91,123.89,0.69]
[1766033747414,8.74038046,123.91,123.89,0.69]
[1766033750210,0.67,123.9,123.88,8.86]
[1766033750408,0.67,123.9,123.88,9.55]
[1766033750712,8.74038046,123.91,123.88,9.55]
[1766033751021,0.67,123.9,123.88,8.86]
[1766033751188,8.07130848,123.9,123.88,8.86]
[1766033751590,8.07130848,123.9,123.88,11.2659257]
[1766033752708,8.74069371,123.91,123.88,11.2659257]
[1766033752912,8.74069371,123.91,123.88,11.9559257]
[1766033753118,8.74069371,123.91,123.89,0.69]
[1766033753718,8.74069371,123.91,123.88,11.9559257]
[1766033762227,0.67,123.91,123.88,8.86]
[1766033763297,8.07069533,123.91,123.88,9.55]
[1766033763496,8.74069533,123.91,123.88,9.55]
[1766033766932,28.2440284,123.92,123.88,8.86]
[1766033767236,0.67,123.91,123.88,11.2659257]
[1766033768128,0.67,123.9,123.88,11.2659257]
[1766033769139,0.67,123.9,123.88,11.9559257]
[1766033772338,0.67,123.9,123.88,9.55]
[1766033775738,8.07124144,123.9,123.88,8.86]
[1766033775942,0.72,123.89,123.88,8.86]
[1766033776282,0.72,123.89,123.87,0.67]
[1766033776436,0.72,123.89,123.87,3.0759257]
[1766033776733,8.79173766,123.89,123.87,3.0759257]
[1766033777176,0.72,123.88,123.86,3.0759257]
[1766033777474,0.72,123.88,123.85,28.81988721]
[1766033777641,0.72,123.88,123.85,3.0759257]
[1766033777846,0.72,123.88,123.85,0.67]
[1766033778156,0.72,123.88,123.84,29.77852687]
[1766033778352,0.72,123.88,123.85,0.67]
[1766033778862,0.72,123.87,123.85,0.67]
[1766033779243,0.72,123.87,123.84,2.4059257]
[1766033779556,0.72,123.85,123.82,3.0759257]
[1766033780163,0.72,123.85,123.83,0.67]
[1766033780468,0.72,123.85,123.82,0.67]
[1766033780838,0.72,123.84,123.82,3.0759257]
[1766033781443,0.72,123.84,123.82,0.67]
[1766033782347,0.72,123.84,123.81,20.01251097]
[1766033782551,0.72,123.84,123.82,0.67]
[1766033783458,0.72,123.83,123.8,20.01317167]
[1766033783759,0.72,123.83,123.8,8.86]
[1766033784364,0.72,123.82,123.8,9.53]
[1766033784569,0.72,123.82,123.8,0.67]
[1766033785345,0.72,123.82,123.79,4.43417957]
[1766033786164,0.72,123.82,123.8,0.67]
[1766033786892,8.79624825,123.82,123.8,0.67]
[1766033787376,0.72,123.82,123.8,0.67]
[1766033788259,0.72,123.85,123.82,0.67]
[1766033788449,0.72,123.85,123.82,4.43417957]
[1766033788849,0.72,123.85,123.82,0.67]
[1766033789176,0.72,123.84,123.82,0.67]
[1766033790369,0.72,123.84,123.81,12.5108214]
[1766033790577,0.72,123.83,123.81,0.67]
[1766033793185,0.72,123.84,123.81,0.67]
[1766033793873,0.72,123.84,123.81,8.74689194]
[1766033794049,0.72,123.84,123.82,0.67]
[1766033794976,8.7951243,123.84,123.81,8.80994492]
[1766033795182,0.72,123.83,123.81,9.47994492]
[1766033795480,0.72,123.83,123.81,0.67]
[1766033797075,8.79581729,123.83,123.8,0.67]
[1766033799280,0.72,123.83,123.81,0.67]
[1766033800769,8.79564718,123.83,123.81,0.67]
[1766033804075,8.07564718,123.83,123.8,0.67]
[1766033804275,0.7,123.82,123.8,0.67]
[1766033804476,0.7,123.82,123.79,20.65170654]
[1766033804777,0.7,123.82,123.79,13.29384824]
[1766033804982,0.7,123.82,123.79,9.53]
[1766033805482,0.7,123.82,123.8,0.67]
[1766033806280,8.77654409,123.82,123.8,0.67]
[1766033810171,8.77654409,123.82,123.79,4.43384824]
[1766033811181,8.77654409,123.82,123.79,3.76384824]
[1766033811389,8.77654409,123.82,123.8,0.67]
[1766033812183,0.7,123.82,123.8,0.67]
[1766033812380,8.07585933,123.83,123.8,0.67]
[1766033812561,0.7,123.83,123.81,0.67]
[1766033813763,0.7,123.83,123.8,12.51096837]
[1766033813967,0.7,123.83,123.81,0.67]
[1766033816594,0.7,123.83,123.8,12.51096837]
[1766033817390,0.7,123.82,123.8,0.67]
[1766033817587,0.7,123.82,123.8,9.53]
[1766033818366,0.7,123.83,123.8,9.53]
[1766033821096,0.7,123.82,123.8,8.86]
[1766033821401,0.7,123.82,123.79,9.53]
[1766033824489,8.07625116,123.82,123.79,9.53]
[1766033824687,0.7,123.81,123.79,9.53]
[1766033824993,8.77625116,123.82,123.79,9.53]
[1766033827393,8.77625116,123.82,123.79,8.86]
[1766033827694,8.77625116,123.82,123.79,12.62384824]
[1766033827896,8.77625116,123.82,123.79,13.29384824]
[1766033835702,0.7,123.82,123.79,21.3720068]
[1766033835888,0.7,123.84,123.82,0.66]
[1766033836199,0.7,123.84,123.81,13.28384824]
[1766033840574,8.07496784,123.84,123.81,13.28384824]
[1766033840787,0.7,123.83,123.81,13.28384824]
[1766033842605,8.0757318,123.83,123.79,8.86]
[1766033842900,8.0757318,123.83,123.77,18.32994492]
[1766033842901,0.7,123.81,123.77,18.32994492]
[1766033843104,0.7,123.81,123.78,0.66]
[1766033843999,8.07689771,123.81,123.78,0.66]
[1766033844305,0.7,123.8,123.78,0.66]
[1766033846397,8.07689771,123.81,123.78,3.06968043]
[1766033846703,0.7,123.81,123.79,0.66]
[1766033847384,0.7,123.81,123.78,11.14851591]
[1766033848409,8.77691036,123.81,123.78,3.06968043]
[1766033850810,0.7,123.8,123.78,3.06968043]
[1766033853304,0.7,123.8,123.78,0.66]
[1766033861416,8.07691036,123.81,123.78,0.66]
[1766033861604,8.77691036,123.81,123.78,3.06968043]
[1766033861788,0.7,123.8,123.78,3.06968043]
[1766033862119,8.79691036,123.81,123.78,3.06968043]
[1766033862787,8.07691036,123.81,123.78,3.06968043]
[1766033862993,0.72,123.8,123.78,3.06968043]
[1766033863814,0.72,123.8,123.78,0.66]
[1766033867011,0.72,123.79,123.77,9.55]
[1766033867805,8.79769789,123.8,123.77,9.55]
[1766033868116,0.72,123.79,123.77,8.86]
[1766033868313,0.72,123.79,123.77,9.55]
[1766033868700,8.79769789,123.8,123.77,9.55]
[1766033873819,0.72,123.8,123.78,0.69]
[1766033874019,0.72,123.8,123.77,17.62939406]
[1766033874829,0.72,123.8,123.76,0.1]
[1766033874830,0.72,123.78,123.76,0.1]
[1766033875031,0.72,123.78,123.76,0.79]
[1766033875320,0.72,123.79,123.76,8.87010128]
[1766033875926,0.72,123.78,123.76,0.79]
[1766033876933,0.72,123.78,123.76,9.65]
[1766033877314,0.72,123.78,123.76,17.73003836]
[1766033878415,0.72,123.78,123.76,20.13987581]
[1766033881631,0.72,123.79,123.77,0.69]
[1766033882131,0.72,123.79,123.76,20.13987581]
[1766033882927,0.72,123.8,123.78,0.69]
[1766033883228,0.72,123.8,123.77,3.09983745]
[1766033885038,0.72,123.8,123.77,0.69]
[1766033885345,0.72,123.79,123.77,0.69]
[1766033914760,3.7660233,123.81,123.77,4.4560233]
[1766033914761,8.07689201,123.81,123.77,4.4560233]
[1766033914948,0.71,123.8,123.77,4.4560233]
[1766033915335,0.71,123.8,123.77,0.69]
[1766033915862,0.71,123.8,123.77,4.4560233]
[1766033916454,0.71,123.79,123.77,0.69]
[1766033916662,0.71,123.79,123.77,4.4560233]
[1766033919260,0.71,123.79,123.77,0.69]
[1766033920757,0.71,123.79,123.77,3.7660233]
[1766033921067,0.71,123.79,123.77,0.67]
[1766033921944,0.71,123.79,123.76,20.80606166]
[1766033921945,8.78822876,123.79,123.76,12.7260233]
[1766033922145,8.78822876,123.79,123.77,0.7]
[1766033925573,0.71,123.79,123.77,0.7]
[1766033927373,0.71,123.79,123.76,20.80613246]
[1766033927679,0.66,123.78,123.76,9.66]
[1766033928064,0.66,123.78,123.76,21.50615526]
[1766033930870,0.66,123.78,123.76,17.74013196]
[1766033931076,0.66,123.78,123.76,21.50615526]
[1766033932180,0.66,123.79,123.76,20.80615526]
[1766033932384,0.66,123.79,123.77,3.7660233]
[1766033932683,0.66,123.79,123.76,21.50615526]
[1766033938286,0.66,123.79,123.76,21.50600358]
[1766033938888,0.66,123.79,123.77,0.7]
[1766033939062,0.66,123.79,123.76,20.80600358]
[1766033939268,0.66,123.79,123.76,21.50600358]
[1766033943265,0.66,123.79,123.76,17.74013196]
[1766033943873,0.66,123.79,123.76,21.50600358]
[1766033945386,0.66,123.84,123.8,0.16]
[1766033945568,0.66,123.84,123.82,3.76587162]
[1766033945773,0.66,123.84,123.81,32.0334895]
[1766033945972,0.66,123.84,123.81,12.78587162]
[1766033946390,0.66,123.84,123.82,20.18332208]
[1766033947394,8.07513413,123.84,123.82,20.18332208]
[1766033947584,0.66,123.83,123.82,20.18332208]
[1766033951011,8.07558749,123.83,123.81,8.86]
[1766033951214,0.67,123.82,123.81,8.86]
[1766033951404,0.67,123.82,123.81,16.93513413]
[1766033951911,0.67,123.83,123.81,17.60513413]
[1766033952312,0.67,123.83,123.81,9.53]
[1766033952612,0.67,123.83,123.81,28.77761788]
[1766033953391,0.67,123.83,123.81,36.85445315]
[1766033956110,0.67,123.83,123.81,28.10761788]
[1766033956278,8.07570377,123.83,123.81,8.86]
[1766033956603,0.68,123.82,123.81,8.86]
[1766033956805,0.68,123.82,123.8,36.76820374]
[1766033964610,0.68,123.82,123.8,33.00233212]
[1766033964910,0.68,123.82,123.8,36.76820374]
[1766033967419,0.68,123.82,123.8,35.41121814]
[1766033974229,0.68,123.82,123.8,11.13642752]
[1766033974610,0.68,123.82,123.81,8.07524139]
[1766033975007,0.68,123.82,123.8,11.13642752]
[1766033975217,0.68,123.82,123.8,19.21166891]
[1766033975709,0.68,123.82,123.8,11.13642752]
[1766033975910,0.68,123.82,123.81,8.07524139]
[1766033976113,0.68,123.82,123.8,11.13642752]
[1766033976424,0.68,123.82,123.8,19.21166891]
[1766033981204,0.68,123.82,123.8,28.07166891]
[1766033984032,0.69,123.84,123.81,3.10888602]
[1766033984411,0.69,123.84,123.81,11.18412741]
[1766033985124,0.69,123.84,123.81,18.5607196]
[1766033986230,0.69,123.84,123.81,19.2607196]
[1766033986409,0.69,123.84,123.81,18.5607196]
[1766033986828,0.69,123.84,123.81,19.2607196]
[1766033993942,8.76505582,123.84,123.81,19.2607196]
[1766033994147,0.69,123.83,123.81,11.18547821]
[1766033995022,0.69,123.83,123.81,19.26053403]
[1766033995447,0.69,123.83,123.81,11.18547821]
[1766033995623,0.69,123.83,123.81,19.26053403]
[1766033995950,0.69,123.83,123.81,11.18547821]
[1766033997553,0.69,123.83,123.81,19.26053403]
[1766033998748,8.07505582,123.84,123.81,18.56053403]
[1766033998951,0.69,123.84,123.82,0.7]
[1766033999138,0.69,123.84,123.81,18.56053403]
[1766033999139,0.69,123.84,123.81,19.26053403]
[1766034000145,8.07496265,123.84,123.81,19.26053403]
[1766034000357,0.69,123.83,123.81,11.18394184]
[1766034000550,8.76496265,123.84,123.81,3.10888602]
[1766034000947,0.69,123.83,123.81,3.10888602]
[1766034001452,0.69,123.83,123.8,9.56]
[1766034001952,0.69,123.81,123.77,0.7]
[1766034002158,0.69,123.8,123.78,0.7]
[1766034003634,0.69,123.8,123.77,20.04818364]
[1766034004258,0.69,123.8,123.77,17.63929762]
[1766034004763,0.69,123.8,123.78,0.7]
[1766034006654,8.76689201,123.81,123.78,10.48855245]
[1766034006953,8.76689201,123.81,123.78,11.18855245]
[1766034007136,8.86,123.83,123.79,2.40981943]
[1766034007336,0.69,123.82,123.8,3.10981943]
[1766034007639,0.69,123.82,123.8,2.40981943]
[1766034007954,0.69,123.82,123.79,11.96981943]
[1766034008656,8.76628401,123.82,123.79,11.96981943]
[1766034008959,0.69,123.81,123.79,11.96981943]
[1766034009140,0.69,123.81,123.79,9.56]
[1766034014863,0.69,123.81,123.79,7.44]
[1766034015243,17.53569752,123.83,123.8,0.66]
[1766034015443,0.6,123.82,123.8,0.66]
[1766034019771,8.6762536,123.82,123.8,0.66]
[1766034023747,8.0762536,123.82,123.8,0.66]
[1766034023947,8.6762536,123.82,123.8,0.66]
[1766034027097,8.6762536,123.82,123.79,8.1]
[1766034027283,0.6,123.81,123.79,8.1]
[1766034027781,12.44136418,123.82,123.79,8.1]
[1766034028481,12.44136418,123.82,123.79,0.66]
[1766034029670,8.6762536,123.82,123.79,0.66]
[1766034030983,0.6,123.81,123.79,0.66]
[1766034034193,8.67692969,123.81,123.79,0.66]
[1766034036391,8.67653792,123.82,123.79,0.66]
[1766034036592,0.6,123.81,123.78,9.52]
[1766034037496,8.67694206,123.81,123.78,9.52]
[1766034037995,8.67694206,123.81,123.78,8.86]
[1766034038180,8.67694206,123.81,123.78,9.52]
[1766034038492,0.6,123.8,123.78,0.66]
[1766034038896,8.07694206,123.81,123.78,0.66]
[1766034039199,8.67694206,123.81,123.78,0.66]
[1766034044293,0.6,123.8,123.77,8.86]
[1766034044790,0.6,123.79,123.76,0.81]
[1766034047405,0.6,123.77,123.76,0.1]
[1766034053000,8.67930951,123.78,123.76,0.1]
[1766034053508,0.6,123.77,123.76,0.1]
[1766034053698,8.67930951,123.78,123.76,0.1]
[1766034058606,8.07930951,123.78,123.76,0.1]
[1766034058810,0.6,123.77,123.76,0.1]
[1766034059903,8.67930951,123.78,123.76,0.1]
[1766034060612,12.44442009,123.78,123.76,0.1]
[1766034061607,0.5,123.76,123.74,0.2]
[1766034061807,4.26511058,123.75,123.74,0.2]
[1766034062010,4.26511058,123.75,123.74,1e-08]
[1766034062814,0.5,123.75,123.74,1e-08]
[1766034065015,8.58080808,123.75,123.74,1e-08]
[1766034066301,12.34591866,123.75,123.74,1e-08]
[1766034067210,8.58080808,123.75,123.74,1e-08]
[1766034070897,12.34591866,123.75,123.74,1e-08]
[1766034072694,12.35016018,123.75,123.74,1e-08]
[1766034077500,11.85016018,123.75,123.74,1e-08]
[1766034077914,12.35016018,123.75,123.74,1e-08]
[1766034082208,12.35016018,123.75,123.72,0.2]
[1766034082209,0.5,123.74,123.72,0.2]
[1766034082423,0.5,123.74,123.71,4.14873527]
[1766034082424,0.5,123.72,123.71,0.2]
[1766034083019,0.5,123.72,123.71,1e-08]
[1766034083214,3.7693521,123.72,123.71,1e-08]
[1766034083737,4.2693521,123.72,123.71,1e-08]
[1766034084535,12.35211963,123.72,123.71,1e-08]
[1766034085129,11.85211963,123.72,123.69,0.1]
[1766034085308,12.54211963,123.72,123.69,0.1]
[1766034086528,8.77350365,123.71,123.69,0.1]
[1766034087235,8.77350365,123.71,123.69,0.81]
[1766034091609,0.69,123.74,123.7,2.41383675]
[1766034091815,17.6317218,123.74,123.71,0.71]
[1766034092124,16.9417218,123.74,123.71,0.71]
[1766034092435,17.6317218,123.74,123.71,0.71]
[1766034092732,20.04555855,123.74,123.71,0.71]
[1766034093915,0.69,123.73,123.71,0.71]
[1766034095134,0.69,123.73,123.69,1e-08]
[1766034095135,0.69,123.7,123.69,1e-08]
[1766034095433,3.10383675,123.7,123.68,0.1]
[1766034095805,2.41383675,123.7,123.68,0.1]
[1766034096033,11.18725765,123.71,123.68,0.1]
[1766034097153,11.18725765,123.71,123.68,0.81]
[1766034097323,19.37318866,123.71,123.68,0.81]
[1766034097523,21.78702541,123.71,123.68,0.81]
[1766034101341,2.41383675,123.7,123.68,1e-08]
[1766034101526,0.69,123.68,123.67,1e-08]
[1766034104621,0.72,123.68,123.67,1e-08]
[1766034108152,0.72,123.68,123.66,0.8]
[1766034108153,3.13383675,123.68,123.66,0.8]
[1766034108449,2.41383675,123.67,123.65,0.1]
[1766034108632,0.72,123.66,123.65,0.1]
[1766034108822,0.72,123.66,123.64,0.7]
[1766034108823,3.13383675,123.66,123.64,0.7]
[1766034109025,0.72,123.66,123.64,0.7]
[1766034118062,9.58,123.68,123.65,0.7]
[1766034118241,9.58,123.68,123.65,8.08707288]
[1766034118441,9.58,123.68,123.65,8.78707288]
[1766034118660,9.58,123.68,123.66,0.7]
[1766034119446,17.66552238,123.68,123.66,0.7]
[1766034119678,17.66552238,123.68,123.65,0.7]
[1766034120961,0.72,123.7,123.68,0.7]
[1766034121949,0.72,123.69,123.66,0.7]
[1766034122267,0.72,123.69,123.65,11.22378167]
[1766034122268,0.72,123.68,123.64,8.86]
[1766034122435,0.72,123.68,123.66,0.7]
[1766034123052,0.72,123.67,123.64,0.7]
[1766034123259,0.72,123.66,123.64,0.7]
[1766034125049,0.72,123.66,123.63,8.88834972]
[1766034125572,0.72,123.66,123.64,0.7]
[1766034126463,0.72,123.65,123.63,0.1]
[1766034126859,0.72,123.65,123.63,0.8]
[1766034128068,0.72,123.65,123.63,8.88864451]
[1766034130164,0.72,123.65,123.63,0.8]
[1766034132671,8.08691347,123.66,123.63,0.8]
[1766034132972,8.77691347,123.66,123.63,0.8]
[1766034134678,8.08691347,123.66,123.63,0.8]
[1766034134980,0.69,123.65,123.63,0.8]
[1766034135760,8.77691347,123.66,123.63,0.8]
[1766034136258,8.08691347,123.66,123.63,0.8]
[1766034136457,0.69,123.65,123.63,0.8]
[1766034137570,8.77691347,123.66,123.63,0.8]
[1766034138188,0.69,123.66,123.64,0.72]
[1766034138867,0.69,123.66,123.63,8.18838747]